fUSD/lending_fUSD_20240425
["ID","MTS","AMOUNT","RATE_DAILY","PERIOD"]
[323492662,1714050641354,-642.0,0.00012328,2]
[323492663,1714050641364,-521.0,0.00012328,2]
[323492664,1714050641374,-1651.47,0.00012328,2]
[323492665,1714050641384,-2914.0,0.00012329,2]
[323492666,1714050641397,-150.0,0.00012337,2]
[323492667,1714050641407,-283.68754978,0.00012346,2]
[323492668,1714050641418,-946.98,0.00012346,2]
[323492669,1714050641429,-500.0,0.00012346,2]
[323492670,1714050641439,-500.0,0.00012346,2]
[323492671,1714050641449,-500.0,0.00012346,2]
[323492672,1714050641460,-500.0,0.00012346,2]
[323492673,1714050641470,-500.0,0.00012347,2]
[323492674,1714050641480,-500.0,0.00012347,2]
[323492675,1714050641490,-500.0,0.00012347,2]
[323492676,1714050641500,-500.0,0.00012347,2]
[323492677,1714050641512,-500.0,0.00012347,2]
[323492678,1714050641523,-500.0,0.00012347,2]
[323492679,1714050641533,-1925.98,0.00012347,2]
[323492680,1714050641544,-500.0,0.00012347,2]
[323492681,1714050641555,-3668.88,0.00012347,2]
[323492682,1714050641564,-500.0,0.00012347,2]
[323492683,1714050641573,-500.0,0.00012347,2]
[323492684,1714050641585,-500.0,0.00012347,2]
[323492685,1714050641595,-1202.98,0.00012347,2]
[323492686,1714050641605,-500.0,0.00012347,2]
[323492687,1714050641615,-500.0,0.00012347,2]
[323492688,1714050641627,-500.0,0.00012347,2]
[323492689,1714050641638,-500.0,0.00012347,2]
[323492690,1714050641649,-2742.97,0.00012347,2]
[323492691,1714050641659,-2216.76,0.00012347,2]
[323492692,1714050641670,-500.0,0.00012347,2]
[323492693,1714050641680,-500.0,0.00012347,2]
[323492694,1714050641691,-300.0,0.00012438,2]
[323492695,1714050641702,-500.0,0.00012442,2]
[323492696,1714050641713,-286.4,0.00012442,2]
[323492697,1714050641724,-3824.88,0.00012442,2]
[323492698,1714050641735,-307.35000538,0.00012442,2]
[323492699,1714050641744,-504.37,0.00012442,2]
[323492700,1714050641755,-13867.23,0.00012442,2]
[323492701,1714050641765,-10000.0,0.00012443,2]
[323492702,1714050641775,-500.0,0.00012443,2]
[323492703,1714050641785,-793.99,0.00012443,2]
[323492704,1714050641794,-500.0,0.00012443,2]
[323492705,1714050641803,-500.0,0.00012443,2]
[323492706,1714050641812,-155.86603091,0.00012443,2]
[323492707,1714050641822,-500.0,0.00012444,2]
[323492708,1714050641833,-1909.61,0.00012444,2]
[323492709,1714050641842,-666.44,0.00012444,2]
[323492710,1714050641852,-500.0,0.00012444,2]
[323492711,1714050641861,-500.0,0.00012444,2]
[323492712,1714050641871,-500.0,0.00012444,2]
[323492713,1714050641881,-500.0,0.00012444,2]
[323492714,1714050641890,-4268.18,0.00012444,2]
[323492715,1714050641900,-500.0,0.00012444,2]
[323492716,1714050641910,-961.32,0.00012444,2]
[323492717,1714050641920,-697.98,0.00012444,2]
[323492718,1714050641929,-500.0,0.00012444,2]
[323492719,1714050641939,-500.0,0.00012444,2]
[323492720,1714050641949,-500.0,0.00012444,2]
[323492721,1714050641958,-500.0,0.00012444,2]
[323492722,1714050641967,-1504.2,0.00012444,2]
[323492723,1714050641977,-500.0,0.00012444,2]
[323492724,1714050641987,-1040.26,0.00012444,2]
[323492725,1714050641996,-500.0,0.00012444,2]
[323492726,1714050642006,-500.0,0.00012444,2]
[323492727,1714050642016,-1536.26,0.00012444,2]
[323492728,1714050642026,-1446.89,0.00012444,2]
[323492729,1714050642035,-500.0,0.00012444,2]
[323492730,1714050642045,-500.0,0.00012444,2]
[323492731,1714050642055,-500.0,0.00012444,2]
[323492732,1714050642065,-500.0,0.00012444,2]
[323492733,1714050642075,-869.87,0.00012444,2]
[323492734,1714050642086,-500.0,0.00012444,2]
[323492735,1714050642096,-500.0,0.00012444,2]
[323492736,1714050642106,-500.0,0.00012445,2]
[323492737,1714050642115,-150.0,0.00012452,2]
[323492738,1714050642125,-238.0,0.0001247,2]
[323492739,1714050642134,-155.0,0.000125,2]
[323492740,1714050642144,-150.0,0.00012548,2]
[323492741,1714050642153,-150.0,0.00012548,2]
[323492742,1714050642163,-150.0,0.00012548,2]
[323492743,1714050642172,-150.0,0.00012554,2]
[323492744,1714050642181,-150.0,0.0001257,2]
[323492745,1714050642191,-946.98,0.0001262,2]
[323492746,1714050642201,-500.0,0.0001262,2]
[323492747,1714050642214,-421.53,0.0001262,2]
[323492748,1714050642224,-500.0,0.00012621,2]
[323492749,1714050642233,-500.0,0.00012621,2]
[323492750,1714050642243,-500.0,0.00012621,2]
[323492751,1714050642252,-500.0,0.00012621,2]
[323492752,1714050642262,-500.0,0.00012621,2]
[323492753,1714050642271,-1925.98,0.00012621,2]
[323492754,1714050642280,-500.0,0.00012621,2]
[323492755,1714050642290,-500.0,0.00012621,2]
[323492756,1714050642300,-474.17,0.00012621,2]
[323492757,1714050642309,-500.0,0.00012621,2]
[323492758,1714050642319,-1202.98,0.00012621,2]
[323492759,1714050642329,-500.0,0.00012621,2]
[323492760,1714050642341,-500.0,0.00012621,2]
[323492761,1714050642350,-500.0,0.00012621,2]
[323492762,1714050642360,-500.0,0.00012621,2]
[323492763,1714050642369,-2216.76,0.00012621,2]
[323492764,1714050642379,-2742.97,0.00012621,2]
[323492765,1714050642389,-500.0,0.00012621,2]
[323492766,1714050642398,-150.0,0.00012628,2]
[323492767,1714050642408,-150.0,0.00012642,2]
[323492768,1714050642418,-152.0,0.00012644,3]
[323492769,1714050642427,-150.0,0.00012665,2]
[323492770,1714050642436,-150.0,0.00012698,2]
[323492771,1714050642445,-238.0,0.000127,2]
[323492772,1714050642454,-1651.0,0.000127,2]
[323492773,1714050642464,-3824.88,0.00012716,2]
[323492774,1714050642473,-13867.23,0.00012716,2]
[323492775,1714050642482,-500.0,0.00012717,2]
[323492776,1714050642492,-793.99,0.00012717,2]
[323492777,1714050642501,-500.0,0.00012717,2]
[323492778,1714050642510,-10000.0,0.00012718,2]
[323492779,1714050642520,-500.0,0.00012718,2]
[323492780,1714050642530,-1909.61,0.00012718,2]
[323492781,1714050642539,-666.44,0.00012718,2]
[323492783,1714050642549,-598.25,0.00012718,2]
[323492785,1714050642558,-500.0,0.00012718,2]
[323492786,1714050642567,-385.11360505,0.00012718,2]
[323492788,1714050642577,-500.0,0.00012718,2]
[323492789,1714050642588,-4268.18,0.00012718,2]
[323492790,1714050642597,-500.0,0.00012718,2]
[323492792,1714050642607,-961.32,0.00012718,2]
[323492793,1714050642616,-697.98,0.00012718,2]
[323492794,1714050642626,-500.0,0.00012718,2]
[323492795,1714050642635,-643.38,0.00012718,2]
[323492796,1714050642645,-500.0,0.00012718,2]
[323492797,1714050642654,-1504.2,0.00012718,2]
[323492798,1714050642665,-500.0,0.00012718,2]
[323492799,1714050642674,-1040.26,0.00012718,2]
[323492800,1714050642684,-500.0,0.00012718,2]
[323492801,1714050642695,-500.0,0.00012718,2]
[323492802,1714050642705,-1536.26,0.00012718,2]
[323492804,1714050642715,-150.0,0.00012718,2]
[323492806,1714050642724,-1446.89,0.00012718,2]
[323492808,1714050642734,-500.0,0.00012718,2]
[323492810,1714050642744,-500.0,0.00012718,2]
[323492811,1714050642753,-500.0,0.00012718,2]
[323492812,1714050642762,-500.0,0.00012718,2]
[323492813,1714050642772,-869.87,0.00012718,2]
[323492814,1714050642781,-338.98,0.00012718,2]
[323492815,1714050642791,-500.0,0.00012718,2]
[323492816,1714050642800,-500.0,0.00012719,2]
[323492817,1714050642810,-150.0,0.0001274,2]
[323492818,1714050642819,-271.62308864,0.0001276,2]
[323492819,1714050642829,-443.35459668,0.00012795,2]
[323492821,1714050642839,-1000.0,0.00012796,2]
[323492823,1714050642847,-500.0,0.00012796,2]
[323492824,1714050642856,-150.0,0.00012798,2]
[323492826,1714050642866,-177.58487337,0.00012799,2]
[323492827,1714050642875,-176.74688988,0.000128,2]
[323492828,1714050642884,-698.96935225,0.000128,2]
[323492829,1714050642894,-209.3939524,0.000128,2]
[323492830,1714050642903,-172.44193278,0.000128,2]
[323492832,1714050642912,-698.96935222,0.00012809,2]
[323492834,1714050642922,-698.96935222,0.00012818,2]
[323492836,1714050642931,-150.0,0.00012822,2]
[323492838,1714050642940,-150.0,0.00012822,2]
[323492840,1714050642950,-177.58487333,0.00012824,2]
[323492842,1714050642959,-698.96935222,0.00012827,2]
[323492843,1714050642969,-698.96935222,0.00012836,2]
[323492844,1714050642977,-698.96935222,0.00012845,2]
[323492845,1714050643154,-177.58487333,0.0001285,2]
[323492846,1714050643164,-698.96935222,0.00012855,2]
[323492847,1714050643174,-698.96935222,0.00012864,2]
[323492848,1714050643183,-698.96935222,0.00012873,2]
[323492849,1714050643193,-177.58487333,0.00012875,2]
[323492850,1714050643207,-698.96935222,0.00012882,2]
[323492851,1714050643217,-2376.30734306,0.00012886,2]
[323492852,1714050643226,-152.0,0.00012888,4]
[323492853,1714050643236,-1089.2978912,0.00012889,2]
[323492854,1714050643246,-2650.6736448,0.00012889,2]
[323492855,1714050643256,-655.68716025,0.00012889,2]
[323492856,1714050643265,-1413.3956501,0.00012889,2]
[323492857,1714050643275,-5475.1361504,0.00012889,2]
[323492858,1714050643284,-161.26623473,0.0001289,2]
[323492859,1714050643294,-698.96935222,0.00012891,2]
[323492860,1714050643303,-946.98,0.00012894,2]
[323492861,1714050643312,-500.0,0.00012894,2]
[323492862,1714050643322,-500.0,0.00012895,2]
[323492864,1714050643333,-500.0,0.00012895,2]
[323492865,1714050643343,-500.0,0.00012895,2]
[323492866,1714050643353,-500.0,0.00012895,2]
[323492867,1714050643362,-500.0,0.00012895,2]
[323492868,1714050643371,-1925.98,0.00012895,2]
[323492869,1714050643381,-500.0,0.00012895,2]
[323492870,1714050643390,-500.0,0.00012895,2]
[323492871,1714050643399,-500.0,0.00012895,2]
[323492872,1714050643408,-1202.98,0.00012895,2]
[323492873,1714050643418,-500.0,0.00012895,2]
[323492874,1714050643428,-500.0,0.00012895,2]
[323492875,1714050643437,-2216.76,0.00012895,2]
[323492876,1714050643446,-2742.97,0.00012895,2]
[323492877,1714050643456,-155.22478226,0.00012898,2]
[323492878,1714050643465,-215.82575411,0.00012898,2]
[323492879,1714050643474,-155.25533383,0.00012898,2]
[323492880,1714050643484,-163.72860898,0.00012898,2]
[323492881,1714050643493,-261.85017646,0.00012898,2]
[323492882,1714050643502,-155.16642723,0.00012898,2]
[323492883,1714050643511,-3075.58206305,0.00012898,2]
[323492884,1714050643520,-207.85411425,0.00012898,2]
[323492885,1714050643529,-782.66617723,0.00012898,2]
[323492886,1714050643539,-509.10572228,0.00012898,2]
[323492887,1714050643548,-523.79187868,0.00012898,2]
[323492888,1714050643557,-409.15313021,0.00012898,2]
[323492889,1714050643566,-3011.72366215,0.00012898,2]
[323492890,1714050643575,-1287.49239605,0.00012898,2]
[323492891,1714050643586,-296.23440643,0.00012898,2]
[323492892,1714050643596,-2121.75343201,0.00012898,2]
[323492893,1714050643607,-1244.54920757,0.00012898,2]
[323492894,1714050643616,-363.61192949,0.00012898,2]
[323492895,1714050643626,-156.60552729,0.00012898,2]
[323492896,1714050643636,-266.03906558,0.00012898,2]
[323492897,1714050643645,-682.91244968,0.00012898,2]
[323492898,1714050643654,-342.22232771,0.00012898,2]
[323492899,1714050643664,-872.23711713,0.00012898,2]
[323492900,1714050643673,-412.7126299,0.00012898,2]
[323492901,1714050643682,-155.54187797,0.00012899,2]
[323492902,1714050643692,-155.05752611,0.00012899,2]
[323492903,1714050643701,-155.90895793,0.00012899,2]
[323492904,1714050643710,-194.69573726,0.00012899,2]
[323492905,1714050643719,-310.31597305,0.00012899,2]
[323492906,1714050643728,-207.53674708,0.00012899,2]
[323492907,1714050643737,-13304.98650985,0.00012899,2]
[323492908,1714050643746,-13274.54064497,0.00012899,2]
[323492909,1714050643756,-4412.36848029,0.00012899,2]
[323492910,1714050643765,-10000.0,0.00012899,2]
[323492911,1714050643774,-10000.0,0.00012899,2]
[323492912,1714050643783,-7995.12041606,0.00012899,2]
[323492913,1714050643792,-412.71262988,0.00012899,2]
[323492914,1714050643801,-647.0,0.000129,2]
[323492915,1714050643810,-589516.63920868,0.000129,5]
[323492916,1714050644084,-31589.99999999,0.000129,5]
[323492917,1714050644166,-1077.40842391,0.000129,5]
[323492918,1714050644179,-2527.4,0.000129,5]
[323492919,1714050644191,-6326.59999999,0.000129,5]
[323492920,1714050644208,-1562.39291835,0.000129,5]
[323492921,1714050644225,-528.8,0.000129,5]
[323492922,1714050644321,-0.0015337,0.00011896,2]
[323492923,1714050644336,-499.9984663,0.00011896,2]
[323492924,1714050644347,-500.0,0.0001217,2]
[323492925,1714050644356,-5328.0015337,0.00012251,2]
[323492926,1714050644373,-304.1883659,0.00012251,2]
[323492927,1714050644385,-3285.464,0.00012251,2]
[323492928,1714050644397,-1082.3461004,0.00012251,2]
[323492929,1714050644406,-30580.31389959,0.000129,5]
[323492930,1714050644418,-6335.96472,0.000129,5]
[323492937,1714050646402,-500.0,0.00011894,2]
[323492938,1714050646412,-150.0,0.00011953,2]
[323492939,1714050646422,-150.0,0.00011955,2]
[323492940,1714050646433,-150.0,0.00011991,2]
[323492941,1714050646443,-150.0,0.00012023,2]
[323492942,1714050646453,-150.0,0.00012032,2]
[323492943,1714050646463,-150.0,0.00012043,2]
[323492944,1714050646472,-150.0,0.00012065,2]
[323492945,1714050646482,-150.0,0.00012086,2]
[323492946,1714050646492,-150.0,0.0001209,2]
[323492947,1714050646502,-150.0,0.00012108,2]
[323492948,1714050646511,-150.0,0.00012125,2]
[323492949,1714050646521,-150.0,0.0001216,2]
[323492950,1714050646530,-500.0,0.00012168,2]
[323492951,1714050646540,-150.0,0.00012238,2]
[323492952,1714050646550,-230.18119439,0.00012246,2]
[323492953,1714050646560,-9466.65300561,0.00012251,2]
[323492954,1714050646602,-264.78000694,0.00012251,2]
[323492955,1714050646615,-268.56698745,0.00012251,2]
[323492956,1714050646626,-300.0,0.0001263,2]
[323492957,1714050646635,-1019.20801255,0.00012648,2]
[323492958,1714050646651,-480.79198745,0.00012648,2]
[323492959,1714050646661,-300.0,0.00012686,2]
[323492960,1714050646670,-8.75927505,0.00012692,2]
[323492961,1714050646682,-141.24072495,0.00012692,2]
[323492962,1714050646692,-150.0,0.00012699,2]
[323492963,1714050646701,-150.0,0.00012712,2]
[323492964,1714050646711,-300.0,0.00012717,2]
[323492965,1714050646720,-1239.7275686,0.00012736,2]
[323492966,1714050646730,-150.0,0.00012736,2]
[323492967,1714050646739,-150.0,0.0001275,2]
[323492968,1714050646750,-150.0,0.00012772,2]
[323492969,1714050646759,-205.23039409,0.00012803,2]
[323492970,1714050646769,-150.0,0.00012817,2]
[323492971,1714050646778,-98.09064717,0.00012826,2]
[323492972,1714050646803,-659.54,0.00012826,2]
[323492973,1714050646814,-742.36935283,0.00012826,2]
[323492974,1714050646823,-150.0,0.00012831,2]
[323492975,1714050646832,-300.0,0.00012844,2]
[323492976,1714050646847,-150.0,0.00012853,2]
[323492977,1714050646856,-11297.63064717,0.000129,5]
[323492978,1714050646949,-230.18119437,0.0001241,2]
[323492979,1714050646958,-82106.21880562,0.000129,5]
[323492981,1714050646969,-4796.72682749,0.000129,5]
[323492984,1714050647912,280.4,9.117e-05,2]
[323492985,1714050701237,31.88,9.802e-05,2]
[323492986,1714050701259,244.94,9.802e-05,2]
[323492987,1714050852723,-170.57,9.323e-05,2]
[323492988,1714050877575,-590.218109,9.8e-05,2]
[323492989,1714050877597,-4333.06579145,9.801e-05,2]
[323492990,1714050877619,-2308.62536712,9.802e-05,2]
[323492991,1714050901172,-590.218109,9.802e-05,2]
[323492992,1714050922393,-7319.5798523,9.802e-05,2]
[323493487,1714051636099,-155.0,9.107e-05,2]
[323493488,1714051636125,-536.70846176,9.107e-05,2]
[323493489,1714051750073,-155.0,8.721e-05,2]
[323493490,1714051750094,-161.55154401,8.722e-05,2]
[323493491,1714051750114,-1777.02433335,8.722e-05,2]
[323493492,1714051750136,-287.43,8.723e-05,2]
[323493493,1714051750159,-4412.36848029,9.102e-05,2]
[323493494,1714051750182,-23357.54376703,9.102e-05,2]
[323493495,1714051750202,-155.0,9.103e-05,2]
[323493496,1714051750223,-5547.56885349,9.103e-05,2]
[323493497,1714051750244,-150.0,9.108e-05,2]
[323493498,1714051750264,-910.99820877,9.124e-05,2]
[323493499,1714051750289,-1242.55781306,9.125e-05,2]
[323493500,1714051769159,-1257.44218694,9.125e-05,2]
[323493517,1714051831940,-176.7,0.00010698,2]
[323493518,1714051831950,-200.0,0.00010775,2]
[323493519,1714051831959,-664.85,0.00010783,2]
[323493520,1714051831968,-200.0,0.00010829,2]
[323493521,1714051831977,-281.84,0.0001085,2]
[323493522,1714051831987,-163.98,0.000109,2]
[323493523,1714051832000,-708.9,0.00010909,2]
[323493524,1714051832010,-287.43,0.00010987,2]
[323493525,1714051832018,-205.89797358,0.00011186,2]
[323493526,1714051832027,-12164.86876772,0.00011196,2]
[323493527,1714051832041,-5197.6115012,0.00011196,2]
[323493528,1714051832066,-778.63384695,0.00011196,2]
[323493529,1714051832078,-4733.07281994,0.00011196,2]
[323493530,1714051832089,-6560.23224627,0.00011196,2]
[323493531,1714051832098,-159.43,0.00011196,2]
[323493532,1714051832108,-173.67,0.00011199,2]
[323493533,1714051832118,-1784.63488396,0.00011588,2]
[323493534,1714051832126,-150.0,0.00011589,2]
[323493535,1714051832135,-150.0,0.00011589,2]
[323493536,1714051832144,-150.0,0.00011678,2]
[323493537,1714051832153,-332.11538977,0.00011678,2]
[323493538,1714051832164,-712.14461023,0.00011678,2]
[323493539,1714051832173,-150.0,0.00011696,2]
[323493540,1714051832182,-2326.89418416,0.00011698,2]
[323493541,1714051832193,-2763.52371584,0.00011698,2]
[323493542,1714051832202,-300.0,0.00011797,2]
[323493543,1714051832211,-824.31411878,0.00011798,2]
[323493544,1714051832236,-606.76588122,0.00011798,2]
[323493545,1714051832250,-500.0,0.00011798,2]
[323493546,1714051832259,-500.0,0.00011798,2]
[323493547,1714051832268,-500.0,0.00011798,2]
[323493548,1714051832277,-487.20845585,0.00011798,2]
[323493549,1714051832287,-500.0,0.00011798,2]
[323493550,1714051832296,-513.2,0.00011798,2]
[323493551,1714051832305,-1587.94,0.00011798,2]
[323493552,1714051832314,-1290.99,0.00011798,2]
[323493553,1714051832323,-500.0,0.00011798,2]
[323493554,1714051832333,-500.0,0.00011798,2]
[323493555,1714051832342,-500.0,0.00011798,2]
[323493556,1714051832351,-500.0,0.00011798,2]
[323493557,1714051832361,-295.7739066,0.00011798,2]
[323493558,1714051832373,-481.9060934,0.00011798,2]
[323493559,1714051832382,-406.60281066,0.00011798,2]
[323493562,1714051832405,-93.39718934,0.00011798,2]
[323493564,1714051832414,-500.0,0.00011798,2]
[323493566,1714051832424,-500.0,0.00011798,2]
[323493568,1714051832433,-198.51031276,0.00011798,2]
[323493570,1714051832445,-301.48968724,0.00011798,2]
[323493572,1714051832454,-446.93033276,0.00011798,2]
[323493577,1714051832730,-142.29966724,0.00011798,2]
[323493578,1714051832745,-310.43967477,0.00011798,2]
[323493579,1714051832764,-189.56032523,0.00011798,2]
[323493580,1714051832773,-344.17282124,0.00011798,2]
[323493581,1714051832784,-155.82717876,0.00011798,2]
[323493582,1714051832793,-500.0,0.00011798,2]
[323493583,1714051832802,-500.0,0.00011798,2]
[323493584,1714051832811,-97.61867372,0.00011798,2]
[323493585,1714051832837,-402.38132628,0.00011798,2]
[323493586,1714051832846,-500.0,0.00011798,2]
[323493587,1714051832854,-500.0,0.00011798,2]
[323493588,1714051832863,-500.0,0.00011798,2]
[323493589,1714051832872,-500.0,0.00011798,2]
[323493590,1714051832881,-500.0,0.00011798,2]
[323493591,1714051832891,-500.0,0.00011798,2]
[323493592,1714051832900,-500.0,0.00011798,2]
[323493593,1714051832909,-453.69740757,0.00011798,2]
[323493594,1714051832976,-46.30259243,0.00011798,2]
[323493595,1714051832986,-492.57740757,0.00011798,2]
[323493596,1714051833003,-7.42259243,0.00011798,2]
[323493597,1714051833012,-500.0,0.00011798,2]
[323493598,1714051833022,-500.0,0.00011798,2]
[323493599,1714051833031,-500.0,0.00011798,2]
[323493600,1714051833040,-500.0,0.00011798,2]
[323493601,1714051833051,-500.0,0.00011798,2]
[323493602,1714051833060,-500.0,0.00011798,2]
[323493603,1714051833069,-500.0,0.00011798,2]
[323493604,1714051833078,-147.80780166,0.00011799,2]
[323493605,1714051833091,-352.19219834,0.00011799,2]
[323493606,1714051833101,-222.94,0.00011799,2]
[323493607,1714051833110,-500.0,0.00011799,2]
[323493608,1714051833120,-500.0,0.00011799,2]
[323493609,1714051833129,-500.0,0.00011799,2]
[323493610,1714051833139,-25415.32,0.00011799,2]
[323493611,1714051833148,-1753.27,0.00011799,2]
[323493612,1714051833158,-500.0,0.00011799,2]
[323493613,1714051833167,-500.0,0.00011799,2]
[323493614,1714051833176,-500.0,0.00011799,2]
[323493615,1714051833186,-500.0,0.00011799,2]
[323493616,1714051833196,-500.0,0.00011799,2]
[323493617,1714051833205,-500.0,0.00011799,2]
[323493618,1714051833214,-500.0,0.00011799,2]
[323493619,1714051833224,-500.0,0.00011799,2]
[323493620,1714051833233,-500.0,0.00011799,2]
[323493621,1714051833247,-215.62,0.00011799,2]
[323493622,1714051833256,-500.0,0.00011799,2]
[323493623,1714051833265,-500.0,0.00011799,2]
[323493624,1714051833275,-500.0,0.00011799,2]
[323493625,1714051833284,-500.0,0.00011799,2]
[323493626,1714051833293,-500.0,0.00011799,2]
[323493627,1714051833302,-500.0,0.00011799,2]
[323493628,1714051833312,-500.0,0.00011799,2]
[323493629,1714051833320,-502.11230895,0.00011799,2]
[323493630,1714051833329,-500.0,0.00011799,2]
[323493631,1714051833338,-500.0,0.00011799,2]
[323493632,1714051833347,-500.0,0.00011799,2]
[323493633,1714051833357,-500.0,0.00011799,2]
[323493634,1714051833366,-500.0,0.00011799,2]
[323493635,1714051833375,-500.0,0.00011799,2]
[323493636,1714051833384,-848.78,0.00011799,2]
[323493637,1714051833393,-150.0,0.00011804,2]
[323493638,1714051833402,-1136.5,0.00011894,2]
[323493639,1714051833412,-500.0,0.00011894,2]
[323493640,1714051833421,-534.36,0.00011894,2]
[323493641,1714051833431,-500.0,0.00011894,2]
[323493642,1714051833441,-500.0,0.00011894,2]
[323493643,1714051833450,-500.0,0.00011894,2]
[323493644,1714051833459,-500.0,0.00011894,2]
[323493645,1714051833468,-500.0,0.00011894,2]
[323493646,1714051833478,-500.0,0.00011894,2]
[323493647,1714051833488,-500.0,0.00011894,2]
[323493648,1714051833501,-5531.68,0.00011894,2]
[323493649,1714051833510,-500.0,0.00011894,2]
[323493650,1714051833520,-2301.89,0.00011894,2]
[323493651,1714051833529,-3363.14,0.00011894,2]
[323493652,1714051833538,-500.0,0.00011894,2]
[323493653,1714051833548,-500.0,0.00011894,2]
[323493654,1714051833559,-500.0,0.00011894,2]
[323493655,1714051833569,-1594.45,0.00011894,2]
[323493656,1714051833578,-500.0,0.00011894,2]
[323493657,1714051833587,-88.74549274,0.00011894,2]
[323493658,1714051833600,-411.25450726,0.00011894,2]
[323493659,1714051833610,-500.0,0.00011894,2]
[323493660,1714051833619,-500.0,0.00011894,2]
[323493661,1714051833629,-2807.99,0.00011894,2]
[323493662,1714051833640,-500.0,0.00011894,2]
[323493663,1714051833649,-500.0,0.00011894,2]
[323493664,1714051833658,-500.0,0.00011894,2]
[323493665,1714051833667,-500.0,0.00011894,2]
[323493666,1714051833677,-552.15549274,0.00011894,2]
[323493667,1714051833703,-4408.99450726,0.00011894,2]
[323493668,1714051833713,-500.0,0.00011894,2]
[323493669,1714051833722,-500.0,0.00011894,2]
[323493670,1714051833731,-500.0,0.00011894,2]
[323493671,1714051833742,-391.00549274,0.00011894,2]
[323493672,1714051833753,-108.99450726,0.00011894,2]
[323493673,1714051833763,-500.0,0.00011894,2]
[323493674,1714051833772,-500.0,0.00011894,2]
[323493675,1714051833781,-500.0,0.00011894,2]
[323493676,1714051833790,-15868.27,0.00011894,2]
[323493677,1714051833801,-500.0,0.00011894,2]
[323493678,1714051833810,-500.0,0.00011894,2]
[323493679,1714051833819,-500.0,0.00011894,2]
[323493680,1714051833829,-1761.87,0.00011894,2]
[323493681,1714051833838,-516.19,0.00011894,2]
[323493682,1714051833847,-202.8,0.00011894,2]
[323493683,1714051833856,-500.0,0.00011894,2]
[323493684,1714051833866,-500.0,0.00011894,2]
[323493685,1714051833875,-500.0,0.00011894,2]
[323493686,1714051833884,-500.0,0.00011894,2]
[323493687,1714051833893,-500.0,0.00011894,2]
[323493688,1714051833906,-500.0,0.00011894,2]
[323493689,1714051833915,-500.0,0.00011894,2]
[323493690,1714051833924,-500.0,0.00011894,2]
[323493691,1714051833934,-500.0,0.00011894,2]
[323493692,1714051833943,-500.0,0.00011894,2]
[323493693,1714051833952,-500.0,0.00011894,2]
[323493694,1714051833961,-500.0,0.00011894,2]
[323493695,1714051833970,-500.0,0.00011894,2]
[323493696,1714051833979,-500.0,0.00011894,2]
[323493697,1714051833993,-500.0,0.00011894,2]
[323493698,1714051834002,-500.0,0.00011894,2]
[323493699,1714051834012,-500.0,0.00011894,2]
[323493700,1714051834022,-500.0,0.00011894,2]
[323493701,1714051834031,-500.0,0.00011894,2]
[323493702,1714051834040,-500.0,0.00011895,2]
[323493703,1714051834050,-500.0,0.00011895,2]
[323493704,1714051834059,-500.0,0.00011895,2]
[323493705,1714051834069,-12433.98,0.00011895,2]
[323493706,1714051834080,-375.38,0.00011895,2]
[323493707,1714051834089,-2247.22,0.00011895,2]
[323493708,1714051834098,-500.0,0.00011895,2]
[323493709,1714051834107,-937.02,0.00011895,2]